Cogmind - Beta 13 @@@ ROGUE MODE // 2024.04.07 @ 23:18:55 Player: TechnicalFowl Result: Destroyed by as-20667 with Assembled F-torch Performance ------------- Evolutions (0) 0 Regions Visited (2) 400 Robots Destroyed (13) 65 Value Destroyed (282) 282 Prototype IDs (2) 40 Alien Tech Used (0) 0 Bonus (0) 0 TOTAL SCORE: 787 Bonus ------- None Cogmind --------- Core Integrity 0/250 Matter 288/300 Energy 100/100 System Corruption 0% Temperature Cool (28) Movement Walking (260) Ox2 Location -10/Mines Parts ------- > --- POWER (1) -------- (None) > --- PROPULSION (2) --- Aluminum Leg > --- UTILITY (2) ------ Large Storage Unit Seismic Detector > --- WEAPON (2) ------- Assault Rifle Assault Rifle > --- INVENTORY (15) --- Light Ion Engine Light Ion Engine Aluminum Leg Aluminum Leg Structural Scanner Assault Rifle Assault Rifle Hammer Peak State ------------ > --- POWER ------------ Ion Engine > --- PROPULSION ------- Aluminum Leg Aluminum Leg > --- UTILITY ---------- Large Storage Unit Terrain Scanner > --- WEAPON ----------- Assault Rifle Assault Rifle > --- INVENTORY -------- Light Ion Engine Light Ion Engine Aluminum Leg Aluminum Leg Structural Scanner Assault Rifle Assault Rifle Hammer [Rating: 7] Favorites ----------- Power Ion Engine Engine Ion Engine Propulsion Aluminum Leg Leg Aluminum Leg Utility Medium Storage Unit Device Seismic Detector Storage Medium Storage Unit Weapon Assault Rifle Energy Gun Medium Laser Ballistic Gun Assault Rifle Build | -11 -10 -10 ------- Run | Yrd Mat Min Slots Evolved . | . . . Power . | . . . Propulsion . | . . . Utility . | . . . Weapon . | . . . Parts Attached 15 | 4 11 . Power 2 | 1 1 . Engine 2 | 1 1 . Core . | . . . Reactor . | . . . Propulsion 3 | . 3 . Treads . | . . . Leg 3 | . 3 . Wheel . | . . . Hover . | . . . Flight . | . . . Utility 5 | 1 4 . Device 2 | . 2 . Storage 3 | 1 2 . Processor . | . . . Hackware . | . . . Protection . | . . . Artifact . | . . . Weapon 5 | 2 3 . Energy Gun 1 | 1 . . Energy Cannon . | . . . Ballistic Gun 4 | 1 3 . Ballistic Cannon . | . . . Launcher . | . . . Special Weapon . | . . . Impact Weapon . | . . . Slashing Weapon . | . . . Piercing Weapon . | . . . Special Melee Weapon . | . . . Unidentified Prototypes . | . . . Parts Lost 4 | . 2 2 Power 2 | . 1 1 Propulsion 2 | . 1 1 Utility . | . . . Weapon . | . . . Highest Loss Streak 2 | . 1 2 To Critical Strikes . | . . . Average Slot Usage (%) 84 | . 82 97 Engine 8 | . 8 12 Leg 27 | . 27 26 Device 4 | . 3 14 Storage 14 | . 14 14 Energy Gun 4 | . 4 . Ballistic Gun 23 | . 23 28 Naked Turns . | . . . Heaviest Build 30 | 13 30 30 Greatest Support 20 | 3 20 20 Greatest Overweight (x) 4 | 4 1 2 Average Overweight (x) . | 3 . 1 Largest Inventory Capacity 15 | 8 15 15 Average Capacity 11 | 7 11 15 Most Carried 9 | 5 9 8 Average Carried 4 | 3 4 8 Final Capacity 15 | 8 15 15 Final Carried 8 | 4 8 8 Class Distribution -------------------- 100% | Mutant Dominant Class ---------------- Mutant | -10/Materials Mutant | -10/Mines Resources | -11 -10 -10 ----------- Run | Yrd Mat Min Matter Collected 487 | 222 265 . Remotely . | . . . Salvage Created 388 | . 388 . Parts 23 | . 23 . Haulers Intercepted . | . . . Recyclers Shooed . | . . . Parts Field Recycled . | . . . Retrieved Matter . | . . . Parts Self-Destructed . | . . . Prevented . | . . . Kills | -11 -10 -10 ------- Run | Yrd Mat Min Combat Hostiles Destroyed 12 | . 12 . Guns 12 | . 12 . Classes Destroyed 3 | . 3 . Builder 1 | . 1 . Swarmer 6 | . 6 . Grunt 6 | . 6 . Best Kill Streak 3 | . 3 . Combat Bots Only 3 | . 3 . Max Kills in Single Turn 2 | . 2 . Gunslinging 1 | . 1 . Exploded . | . . . Melee . | . . . Uniques/NPCs Destroyed . | . . . Combat | -11 -10 -10 -------- Run | Yrd Mat Min Hostile Shots Fired 100 | . 81 19 Missed 34 | . 30 4 Damage Taken 905 | . 559 346 Core 258 | . 140 118 Absorbed by Shields . | . . . Core Remaining (%) 100 | 100 . . Volleys Fired 46 | . 44 2 Largest 2 | . 2 2 Hottest 70 | . 70 40 Shots Fired 92 | . 88 4 Gun 92 | . 88 4 Cannon . | . . . Launcher . | . . . Special . | . . . Kinetic 83 | . 79 4 Thermal 9 | . 9 . Explosive . | . . . Electromagnetic . | . . . Robot Hit Streak 11 | . 11 1 Robot Miss Streak 4 | . 4 2 Penetration Max . | . . . Secondary Targets 1 | . 1 . Max Gunslinging Chain 1 | . 1 . Shots Hit Robots 59 | . 58 1 Core Hits 25 | . 24 1 Critical Kills . | . . . Critical Parts Destroyed 1 | . 1 . Critical Strikes 1 | . 1 . Destroy 1 | . 1 . Melee Attacks . | . . . Impact . | . . . Slashing . | . . . Piercing . | . . . Sneak Attacks . | . . . Combat Hostiles . | . . . Follow-up Attacks . | . . . Damage Inflicted 640 | . 630 10 Guns 640 | . 630 10 Cannons . | . . . Explosions . | . . . Melee . | . . . Ramming . | . . . Kinetic 567 | . 557 10 Thermal 73 | . 73 . Explosive . | . . . Electromagnetic . | . . . Impact . | . . . Slashing . | . . . Piercing . | . . . Highest Corruption . | . . . Average Corruption . | . . . Corruption Purged . | . . . Corruption Blocked . | . . . Overload Shots . | . . . Overflow Damage . | . . . Projectiles . | . . . Explosions . | . . . Melee . | . . . Knockbacks . | . . . Impact . | . . . Kinetic . | . . . Secondary . | . . . Self-Inflicted Damage . | . . . Shots . | . . . Rammed . | . . . Targets Rammed . | . . . Kicked . | . . . Crushed . | . . . Highest Temperature 90 | . 90 8 Average Temperature 27 | . 28 8 Received Heat Transfer 350 | . 270 80 Siege Activations . | . . . Robots Corrupted . | . . . Combat Hostiles . | . . . Parts Fried . | . . . Impact Corruptions . | . . . Robots Melted . | . . . Combat Hostiles . | . . . Parts Melted 1 | . 1 . Heat Transferred 222 | . 222 . Parts Sabotaged . | . . . Parts Stolen . | . . . Parts Stripped . | . . . Power Chain Reactions . | . . . Alert | -11 -10 -10 ------- Run | Yrd Mat Min Peak Influence 180 | . 180 11 Initial 11 | . . 11 Average 69 | . 87 9 Maximum Alert Level . | . . . Low Security (%) 100 | 100 100 100 Level 1 . | . . . Level 2 . | . . . Level 3 . | . . . Level 4 . | . . . Level 5 . | . . . High Security . | . . . Max Security . | . . . Squads Dispatched 3 | . 3 . Investigation 2 | . 2 . Extermination . | . . . Reinforcement 1 | . 1 . Assault . | . . . Garrison . | . . . Intercept . | . . . Searches Triggered . | . . . Construction Impeded . | . . . Haulers Reinforced . | . . . Active Scanning Responses . | . . . Cargo Convoy Interrupts . | . . . Stealth | -11 -10 -10 --------- Run | Yrd Mat Min Distress Signals 1 | . 1 . Communications Jammed . | . . . Distress Signals . | . . . Times Spotted 39 | . 24 15 Peak Tracking Total 13 | . 4 13 Tactical Retreats . | . . . Traps | -11 -10 -10 ------- Run | Yrd Mat Min Traps Triggered 1 | . 1 . Indirectly . | . . . Trap Hack Attempts . | . . . Triggered . | . . . Disarmed . | . . . Reprogrammed . | . . . Reused . | . . . Traps Extracted . | . . . Installed . | . . . Triggered . | . . . Machines | -11 -10 -10 ---------- Run | Yrd Mat Min Machines Disabled . | . . . Max in Single Turn . | . . . Machines Repaired . | . . . Machines Dismantled . | . . . Machines Sabotaged . | . . . Overloaded Fab Kills . | . . . Hacking | -11 -10 -10 --------- Run | Yrd Mat Min Machines Accessed 5 | . 5 . Terminals 5 | . 5 . Fabricators . | . . . Repair Stations . | . . . Recycling Units . | . . . Scanalyzers . | . . . Garrison Access . | . . . Total Hacks 15 | . 15 . Successful 5 | . 5 . Failed 10 | . 10 . Catastrophic 5 | . 5 . Database Lockouts . | . . . Manual 8 | . 8 . Terminals 15 | . 15 . Fabricators . | . . . Repair Stations . | . . . Recycling Units . | . . . Scanalyzers . | . . . Garrison Access . | . . . Terminal Hacks 5 | . 5 . Robot Analysis 1 | . 1 . Prototype ID Bank 1 | . 1 . Branch Access Points 1 | . 1 . Investigation Status 1 | . 1 . Hauler Manifests 1 | . 1 . Fabricator Hacks . | . . . Repair Station Hacks . | . . . Recycling Unit Hacks . | . . . Scanalyzer . | . . . Garrison Access Hacks . | . . . Unauthorized Hacks . | . . . Terminals . | . . . Fabricators . | . . . Repair Stations . | . . . Recycling Units . | . . . Scanalyzers . | . . . Garrison Access . | . . . Data Cores Recovered . | . . . Used . | . . . Hacking Detections 5 | . 5 . Full Trace Events 3 | . 3 . Feedback Events . | . . . Feedback Blocked . | . . . Robot Schematics Acquired . | . . . Robots Built . | . . . Authchips . | . . . Time . | . . . Total Robot Build Rating . | . . . Part Schematics Acquired . | . . . Parts Built . | . . . Authchips . | . . . Time . | . . . Total Part Build Rating . | . . . Parts Repaired . | . . . Time . | . . . Parts Recycled . | . . . Recycled Matter . | . . . Retrieved Matter . | . . . Retrieved Components . | . . . Parts Scanalyzed . | . . . Part Schematics Acquired . | . . . Parts Damaged . | . . . Bothacking | -11 -10 -10 ------------ Run | Yrd Mat Min Used RIF Installer . | . . . Robots Hacked . | . . . Non-combat . | . . . Combat . | . . . Robot Hacks Applied . | . . . Relay Couplers Released . | . . . Fabnet Peak Effective % . | . . . Robots Rewired . | . . . Allies Hacked . | . . . Hacks Repelled . | . . . Allies | -11 -10 -10 -------- Run | Yrd Mat Min Total Allies . | . . . Largest Group . | . . . Highest-Rated Group . | . . . Highest-Rated Ally . | . . . Total Orders . | . . . Ally Attacks . | . . . Total Damage . | . . . Kills . | . . . Allies Corrupted . | . . . Allies Melted . | . . . Intel | -11 -10 -10 ------- Run | Yrd Mat Min Robot Analysis Total 1 | . 1 . Derelict Logs Recovered . | . . . Drone Launches . | . . . Drone Recoveries . | . . . Exploration | -11 -10 -10 ------------- Run | Yrd Mat Min Turns Passed 1148 | 144 900 104 Spaces Moved 648 | 61 537 50 Core 61 | 61 . . Treads . | . . . Legs 587 | . 537 50 Wheels . | . . . Hover . | . . . Flight . | . . . Fastest Speed 50 | 50 120 190 Average Speed 149 | 220 137 197 Slowest Speed 260 | 250 190 260 Overloaded Moves . | . . . Propulsion Burnouts . | . . . Robots Hopped . | . . . Cave-ins Triggered . | . . . Exploration Rate (%) 38 | 5 88 21 Regions Visited 2 Branch Regions 1 Pre-discovered Areas . | . . . Known Exits Taken 1 | . 1 . Unknown Exits Taken 1 | 1 . . Scrap Searched 1 | . . 1 Spaces Dug . | . . . Terrain Destroyed . | . . . Melee . | . . . Projectile . | . . . AOE . | . . . Terrain Rammed . | . . . Walls Destroyed . | . . . Machines Disabled . | . . . Actions | -11 -10 -10 --------- Run | Yrd Mat Min Total 746 | 72 622 52 Wait 6 | . 6 . Move 646 | 60 536 50 Hop . | . . . Pick Up 25 | 8 17 . Fast Attach . | . . . Attach 11 | 4 7 . Detach . | . . . Swap 4 | . 4 . Drop 8 | . 8 . Fire 46 | . 44 2 Melee . | . . . Ram . | . . . Kick . | . . . Crush . | . . . Escape Stasis . | . . . Rewire . | . . . Trap . | . . . Miscellaneous . | . . . Route ------- -11/Scrapyard -10/Materials (discovered 3 exits: [*Mat x2] / *Min) -10/Mines History --------- Turn | Location | Event 17 | -11/Scrapyard | Discovered new exit (range 15) 145 | -11/Scrapyard | Entered Materials 312 | -10/Materials | Discovered new exit (range 9) 317 | -10/Materials | Build established: Mutant 372 | -10/Materials | Discovered new exit (range 15) 514 | -10/Materials | Identified exit to Mines 871 | -10/Materials | Core integrity fell below 50% 895 | -10/Materials | Discovered new exit (range 16) 1045 | -10/Materials | Entered Mines 1113 | -10/Mines | Assembled infested the area 1118 | -10/Mines | Assisted by a Guerilla fighting off Assembled 1145 | -10/Mines | Core integrity fell below 20% 1149 | -10/Mines | Destroyed by as-20667 with Assembled F-torch Last Messages --------------- 01135_ HV Slug penetrates D-53 Grenadier. 01135_ D-53 Grenadier suffers critical hit (Destroy). 01135_ D-53 Grenadier destroyed. 01136_ Ion Engine destroyed. 01137_ The unstable cave ceiling collapses. 01137_ HV Slug penetrates Wall. 01137_ HV Slug penetrates Earth. 01138_ K-01 Serf collects debris. 01139_ HV Slug penetrates D-53 Grenadier. 01139_ D-53 Grenadier suffers critical hit (Destroy). 01139_ D-53 Grenadier destroyed. 01140_ The unstable cave ceiling collapses. 01140_ K-01 Serf collects debris. 01145_ HV Slug penetrates Earth. 01146_ The unstable cave ceiling collapses. 01147_ K-01 Serf collects debris. 01148_ The unstable cave ceiling collapses. 01148_ K-01 Serf collects debris. 01149_ as-91198 suffers critical hit (Destroy). 01149_ as-91198 destroyed. Map ----- +----------------------------------------------------+ | ??????????????????????????????????????????????? | | ??????????????????????????????????????????????? | | ??????????????????????????????????????????????? | | ??????????????????????????????????????????????? | | ??????????????????????????????????????????????? | | ??????????????????????????????????????????????? | | ??????????????????????????????????????????????? | | ??????????????????????????????????????????????? | | ??????????????????????????????????????????????? | | ??????????????????????????????????????????????? | | ??????????????????????????????????????????????? | | ??????????????????????????????????????????????? | | ??????????????????????????????????????????????? | | ????????????????####?????????????????#####????? | | ?????? ??????### #????????????????# ????? | | ??????? ####?# # #####???????????? ?????? | | ????????? ## # ###?????????? ?????? | | ??????????# =k % ???????????# ?????? | | ??????????##% %*%! #????????????# #?????? | | ??????????# / a a !!*# #????????????# #?????? | | ???????????# % ##???????????# #?????? | | ???????????# # #aa #???????????# #?????? | | ?????????????# a % ##?????????## ##????? | | ?????????????## ## %h #????????## #????? | | ?????????????????# #?????#### ##???? | | ?????????????????# @ #????## ###?? | | ?????????????????# ##?### ##? | | ?????????????????## ### #? | | ??????????????????### """ ### ### ## | | ????????????????????# """ ##?####?## # | | ????????????????????# """ #????????# | | ???????????????????# """ #???????# | | ???????????????????# t #???????# ## | | ???????????????????## #???????## ##? | | ????????????????????## k ##????????# #?? | | ?????????????????????# #?????????####?? | | ???????????????????? #??????????????? | | ??????????????????? ##??????????????? | | ?????????????????? ### ##???????????????? | | ?????????????????# #??# ##????????????????? | | ?????????????????###???## ##?????????????????? | | ????????????????????????###???????????????????? | | ??????????????????????????????????????????????? | | ??????????????????????????????????????????????? | | ??????????????????????????????????????????????? | | ??????????????????????????????????????????????? | | | | | | | | | +----------------------------------------------------+ Best States ------------- Heat Dissipation 25 Energy Generation 10 Energy Capacity 250 Matter Stores 300 Matter Capacity 300 Sight Range 16 Terrain Scan Range 14 Terrain Scan Density 10 Evasion (%) 55 Item Schematics ----------------- None Robot Schematics ------------------ None Fabricated ------------ Nothing Alien Tech Used ----------------- None Achievements -------------- None Challenges ------------ None Game ------ Seed HeatPowerStick Manual? 0 Play Time 00:09:46 Cumulative 5.3 hours Start 2024.04.07 @ 23:09:38 End 2024.04.07 @ 23:18:55 Sessions 1 Manual Loads 0 Difficulty Rogue Special Mode None Game No. 10 Rogue 10 Adventurer 0 Explorer 0 Win Type - Total 0 Types 0/0/0/0/0/0/0/0/0 Lore% 5 Gallery% 14 Achievement% 16 Wizard Run 0 Options --------- Layout 1 ASCII 0 Keyboard 0 Movement Mouse Keybinds 0 Fullscreen 0 Font 28/SmallcapsGlow Map View 59x39 Zoom Use 0% Tactical HUD 1 Map Filters NONE Filters NONE Steam 1 RUN: 4253d65a-e1a5-456e-971b-2dae567cefca